fUST/lending_fUST_20240702
["ID","MTS","AMOUNT","RATE_DAILY","PERIOD"]
[330837215,1719851438465,-500.0,0.00015979,2]
[330837216,1719851438475,-795.08,0.00015979,2]
[330837217,1719851438487,-500.0,0.00015979,2]
[330837218,1719851438497,-500.0,0.00015979,2]
[330837219,1719851438508,-500.0,0.00015979,2]
[330837220,1719851438519,-504.6431486,0.00015979,2]
[330837221,1719851438530,-500.0,0.00015979,2]
[330837222,1719851438540,-161.92350547,0.00015979,2]
[330837223,1719851438550,-500.0,0.00015979,2]
[330837224,1719851438560,-501.16746638,0.00015979,2]
[330837225,1719851438570,-500.0,0.00015979,2]
[330837227,1719851438580,-4605.05,0.00015979,2]
[330837229,1719851438591,-503.53096507,0.00015979,2]
[330837230,1719851438601,-504.68650506,0.0001598,2]
[330837231,1719851438612,-500.0,0.0001598,2]
[330837232,1719851438621,-1290.99,0.0001598,2]
[330837233,1719851438631,-500.0,0.0001598,2]
[330837234,1719851438641,-504.00056357,0.0001598,2]
[330837235,1719851438651,-3558.99,0.0001598,2]
[330837236,1719851438661,-738.68,0.0001598,2]
[330837237,1719851438670,-500.0,0.0001598,2]
[330837238,1719851438679,-500.0,0.0001598,2]
[330837239,1719851438689,-500.0,0.0001598,2]
[330837240,1719851438699,-603.24,0.0001598,2]
[330837241,1719851438708,-500.0,0.0001598,2]
[330837242,1719851438720,-500.0,0.0001598,2]
[330837243,1719851438730,-286.93783247,0.00015981,2]
[330837244,1719851438744,-1176.64,0.00015981,2]
[330837245,1719851438754,-500.0,0.00015981,2]
[330837246,1719851438764,-611.14,0.00015981,2]
[330837247,1719851438775,-500.0,0.00015981,2]
[330837248,1719851438784,-500.0,0.00015981,2]
[330837249,1719851438794,-500.0,0.00015981,2]
[330837250,1719851438803,-500.0,0.00015981,2]
[330837251,1719851438815,-500.0,0.00015981,2]
[330837252,1719851438825,-500.0,0.00015981,2]
[330837253,1719851438834,-501.00909289,0.00015981,2]
[330837254,1719851438844,-1999.982629,0.00016,2]
[330837255,1719851438854,-500.0,0.00016045,2]
[330837256,1719851438863,-598.00843059,0.00016045,2]
[330837257,1719851438874,-500.0,0.00016045,2]
[330837258,1719851438884,-500.0,0.00016046,2]
[330837259,1719851438894,-500.0,0.00016046,2]
[330837260,1719851438904,-506.08288205,0.00016046,2]
[330837261,1719851438914,-525.60376907,0.00016046,2]
[330837262,1719851438924,-505.92273076,0.00016046,2]
[330837263,1719851438934,-500.0,0.00016046,2]
[330837264,1719851438944,-507.07601639,0.00016046,2]
[330837265,1719851438954,-501.33054315,0.00016046,2]
[330837266,1719851438965,-500.0,0.00016046,2]
[330837267,1719851438974,-504.44284795,0.00016046,2]
[330837268,1719851438983,-296.44866345,0.00016046,2]
[330837269,1719851438993,-504.59211819,0.00016046,2]
[330837270,1719851439003,-504.12659415,0.00016046,2]
[330837271,1719851439013,-500.0,0.00016046,2]
[330837272,1719851439023,-504.02850456,0.00016046,2]
[330837273,1719851439033,-500.0,0.00016046,2]
[330837274,1719851439043,-511.26728035,0.00016046,2]
[330837275,1719851439053,-501.19030098,0.00016046,2]
[330837276,1719851439063,-506.90130683,0.00016046,2]
[330837277,1719851439073,-502.98563906,0.00016046,2]
[330837278,1719851439084,-501.42689435,0.00016046,2]
[330837279,1719851439094,-501.6747043,0.00016046,2]
[330837280,1719851439104,-507.05294163,0.00016046,2]
[330837281,1719851439114,-501.41409502,0.00016046,2]
[330837282,1719851439124,-501.27846773,0.00016046,2]
[330837283,1719851439135,-502.22774719,0.00016046,2]
[330837284,1719851439146,-502.64661799,0.00016046,2]
[330837285,1719851439157,-501.29483592,0.00016046,2]
[330837286,1719851439168,-501.7757876,0.00016046,2]
[330837287,1719851439178,-501.69317079,0.00016046,2]
[330837288,1719851439188,-504.57663247,0.00016046,2]
[330837289,1719851439198,-500.0,0.00016046,2]
[330837290,1719851439208,-500.0,0.00016046,2]
[330837291,1719851439220,-500.0,0.00016046,2]
[330837292,1719851439230,-500.0,0.00016046,2]
[330837293,1719851439241,-502.65343628,0.00016046,2]
[330837294,1719851439251,-503.97738065,0.00016046,2]
[330837295,1719851439261,-504.92087146,0.00016046,2]
[330837296,1719851439271,-505.28113106,0.00016046,2]
[330837297,1719851439282,-504.14038956,0.00016046,2]
[330837298,1719851439292,-500.99674269,0.00016046,2]
[330837299,1719851439302,-502.34389929,0.00016046,2]
[330837300,1719851439312,-500.0,0.00016046,2]
[330837301,1719851439323,-501.95523051,0.00016046,2]
[330837302,1719851439333,-501.43308843,0.00016046,2]
[330837303,1719851439343,-503.61376719,0.00016046,2]
[330837304,1719851439354,-504.09781905,0.00016046,2]
[330837305,1719851439363,-503.5800661,0.00016046,2]
[330837306,1719851439373,-502.59611082,0.00016046,2]
[330837307,1719851439383,-381.82391232,0.00016046,2]
[330837308,1719851439393,-505.16488385,0.00016046,2]
[330837309,1719851439403,-503.24911072,0.00016046,2]
[330837310,1719851439413,-187.34215104,0.00016046,2]
[330837311,1719851439423,-545.94239856,0.00016046,2]
[330837312,1719851439433,-503.67837165,0.00016046,2]
[330837313,1719851439443,-627.82341805,0.00016046,2]
[330837314,1719851439453,-502.01154538,0.00016046,2]
[330837315,1719851439466,-474.10370638,0.00016046,2]
[330837316,1719851439476,-507.14621062,0.00016046,2]
[330837317,1719851439486,-503.20843797,0.00016046,2]
[330837318,1719851439497,-503.46329121,0.00016046,2]
[330837319,1719851439508,-500.0,0.00016046,2]
[330837320,1719851439518,-500.0,0.00016046,2]
[330837321,1719851439528,-504.13347202,0.00016046,2]
[330837322,1719851439539,-504.02442679,0.00016046,2]
[330837323,1719851439551,-504.63290159,0.00016046,2]
[330837324,1719851439560,-505.32893233,0.00016046,2]
[330837325,1719851439570,-506.51123996,0.00016046,2]
[330837326,1719851439581,-500.0,0.00016046,2]
[330837327,1719851439594,-502.03969362,0.00016046,2]
[330837328,1719851439604,-510.49446747,0.00016046,2]
[330837329,1719851439615,-508.87212656,0.00016046,2]
[330837330,1719851439625,-505.24397052,0.00016046,2]
[330837331,1719851439635,-505.20149563,0.00016046,2]
[330837332,1719851439645,-589.05786047,0.00016046,2]
[330837333,1719851439656,-503.23293602,0.00016046,2]
[330837334,1719851439666,-504.01683071,0.00016046,2]
[330837335,1719851439677,-506.30017388,0.00016046,2]
[330837336,1719851439688,-502.96672461,0.00016046,2]
[330837337,1719851439698,-504.1488094,0.00016046,2]
[330837338,1719851439710,-500.0,0.00016046,2]
[330837339,1719851439723,-501.61666779,0.00016046,2]
[330837340,1719851439736,-503.58781561,0.00016046,2]
[330837341,1719851439748,-503.17309552,0.00016046,2]
[330837342,1719851439758,-506.17497427,0.00016046,2]
[330837343,1719851439768,-504.69355678,0.00016046,2]
[330837344,1719851439779,-505.86904496,0.00016046,2]
[330837345,1719851439789,-505.85319242,0.00016046,2]
[330837346,1719851439798,-336.36835521,0.00016046,2]
[330837347,1719851439808,-500.0,0.00016046,2]
[330837348,1719851439820,-500.0,0.00016046,2]
[330837349,1719851439830,-559.24,0.00016046,2]
[330837350,1719851439840,-500.0,0.00016046,2]
[330837351,1719851439850,-500.0,0.00016046,2]
[330837352,1719851439859,-500.0,0.00016046,2]
[330837353,1719851439869,-500.0,0.00016046,2]
[330837354,1719851439878,-500.0,0.00016046,2]
[330837355,1719851439887,-500.0,0.00016046,2]
[330837356,1719851439897,-500.0,0.00016046,2]
[330837357,1719851439907,-449.68496205,0.00016046,2]
[330837358,1719851439917,-500.0,0.00016046,2]
[330837359,1719851439926,-500.0,0.00016046,2]
[330837360,1719851439936,-594.28,0.00016046,2]
[330837361,1719851439945,-877.0,0.00016125,2]
[330837362,1719851439955,-2000.0,0.00016155,2]
[330837363,1719851439966,-6690.017404,0.000162,2]
[330837364,1719851439975,-1102.65,0.00016252,2]
[330837365,1719851439984,-500.0,0.00016252,2]
[330837366,1719851439993,-2423.97,0.00016253,2]
[330837367,1719851440003,-500.0,0.00016253,2]
[330837368,1719851440013,-539.66,0.00016253,2]
[330837369,1719851440022,-528.01,0.00016253,2]
[330837370,1719851440032,-508.77292189,0.00016253,2]
[330837371,1719851440041,-620.36412392,0.00016253,2]
[330837372,1719851440051,-500.0,0.00016253,2]
[330837373,1719851440061,-500.0,0.00016253,2]
[330837374,1719851440071,-451.98912314,0.00016253,2]
[330837375,1719851440080,-500.0,0.00016253,2]
[330837376,1719851440089,-261.93938859,0.00016253,2]
[330837378,1719851440099,-523.38559337,0.00016253,2]
[330837380,1719851440109,-261.53691647,0.00016253,2]
[330837382,1719851440119,-500.0,0.00016254,2]
[330837383,1719851440128,-500.0,0.00016254,2]
[330837384,1719851440137,-500.0,0.00016254,2]
[330837385,1719851440146,-500.0,0.00016254,2]
[330837386,1719851440156,-214.86933078,0.00016254,2]
[330837387,1719851440166,-71693.98172263,0.00016254,2]
[330837388,1719851440176,-1102.65,0.00016254,2]
[330837389,1719851440185,-1102.65,0.00016254,2]
[330837390,1719851440196,-1102.65,0.00016254,2]
[330837391,1719851440206,-1102.65,0.00016254,2]
[330837392,1719851440218,-500.0,0.00016254,2]
[330837393,1719851440228,-633.00846752,0.00016254,2]
[330837394,1719851440238,-10752.36260476,0.00016255,2]
[330837395,1719851440249,-30000.0,0.00016255,2]
[330837396,1719851440259,-17244.25346368,0.00016255,2]
[330837397,1719851440269,-32331.79276312,0.00016255,2]
[330837398,1719851440284,-24860.57097772,0.00016255,2]
[330837399,1719851440294,-42219.78058169,0.00016255,2]
[330837400,1719851440304,-26080.98438024,0.00016255,2]
[330837401,1719851440314,-151.0,0.00016255,2]
[330837402,1719851440324,-151.0,0.00016255,2]
[330837403,1719851440333,-200.0,0.00016255,2]
[330837404,1719851440342,-151.0,0.00016255,2]
[330837405,1719851440351,-151.0,0.00016255,2]
[330837406,1719851440361,-1175.087034,0.00016255,2]
[330837407,1719851440370,-1175.087034,0.00016255,2]
[330837408,1719851440379,-208.421638,0.00016255,2]
[330837409,1719851440389,-151.0,0.00016255,2]
[330837410,1719851440398,-151.0,0.00016255,2]
[330837412,1719851440408,-151.0,0.00016255,2]
[330837414,1719851440418,-151.0,0.00016255,2]
[330837416,1719851440428,-151.0,0.00016255,2]
[330837418,1719851440437,-151.0,0.00016255,2]
[330837421,1719851440447,-151.0,0.00016255,2]
[330837423,1719851440457,-151.0,0.00016255,2]
[330837424,1719851440468,-160.00478,0.00016255,2]
[330837426,1719851440478,-151.0,0.00016255,2]
[330837428,1719851440488,-664.67305,0.00016255,2]
[330837430,1719851440498,-664.67305,0.00016255,2]
[330837432,1719851440507,-151.0,0.00016255,2]
[330837434,1719851440518,-151.0,0.00016255,2]
[330837436,1719851440527,-151.0,0.00016255,2]
[330837437,1719851440537,-1241.572602,0.00016255,2]
[330837438,1719851440548,-1241.572602,0.00016255,2]
[330837439,1719851440558,-157.746384,0.00016255,2]
[330837440,1719851440568,-157.746384,0.00016255,2]
[330837441,1719851440579,-157.746384,0.00016255,2]
[330837442,1719851440590,-157.746384,0.00016255,2]
[330837443,1719851440600,-151.0,0.00016255,2]
[330837444,1719851440610,-156.05311,0.00016255,2]
[330837445,1719851440620,-151.0,0.00016255,2]
[330837446,1719851440630,-155.961253,0.00016255,2]
[330837447,1719851440639,-158.543487,0.00016255,2]
[330837448,1719851440649,-151.0,0.00016255,2]
[330837449,1719851440658,-151.0,0.00016255,2]
[330837450,1719851440667,-151.0,0.00016255,2]
[330837451,1719851440677,-1000.0,0.000165,2]
[330837452,1719851440687,-1102.65,0.00016524,2]
[330837453,1719851440697,-253.66,0.00016525,2]
[330837454,1719851440707,-542.73,0.00016525,2]
[330837455,1719851440718,-500.0,0.00016525,2]
[330837456,1719851440729,-445.94,0.00016525,2]
[330837457,1719851440744,-500.0,0.00016525,2]
[330837458,1719851440753,-500.0,0.00016525,2]
[330837459,1719851440763,-500.0,0.00016525,2]
[330837460,1719851440774,-500.0,0.00016526,2]
[330837461,1719851440783,-1103.98,0.00016526,2]
[330837462,1719851440792,-500.0,0.00016526,2]
[330837463,1719851440803,-500.0,0.00016526,2]
[330837464,1719851440815,-493.69161343,0.00016526,2]
[330837465,1719851440828,-6.30838657,0.00016526,2]
[330837466,1719851440838,-500.0,0.00016526,2]
[330837467,1719851440849,-500.0,0.00016526,2]
[330837468,1719851440858,-500.0,0.00016526,2]
[330837469,1719851440868,-500.0,0.00016526,2]
[330837470,1719851440878,-2944.17,0.00016526,2]
[330837471,1719851440888,-500.0,0.00016527,2]
[330837472,1719851440898,-795.08,0.00016527,2]
[330837473,1719851440907,-642.26,0.00016527,2]
[330837474,1719851440917,-500.0,0.00016527,2]
[330837475,1719851440927,-505.81962228,0.00016527,2]
[330837476,1719851440937,-500.0,0.00016527,2]
[330837477,1719851440946,-553.31868139,0.00016527,2]
[330837478,1719851440956,-4605.05,0.00016527,2]
[330837479,1719851440967,-818.71,0.00016528,2]
[330837480,1719851440978,-1575.53,0.00016528,2]
[330837481,1719851440988,-2246.4,0.00016528,2]
[330837482,1719851440998,-500.0,0.00016528,2]
[330837483,1719851441008,-500.0,0.00016528,2]
[330837484,1719851441018,-500.0,0.00016528,2]
[330837485,1719851441028,-542.83,0.00016528,2]
[330837486,1719851441038,-500.0,0.00016528,2]
[330837487,1719851441048,-647.63,0.00016528,2]
[330837488,1719851441057,-856.66,0.00016528,2]
[330837489,1719851441067,-3948.25,0.00016528,2]
[330837490,1719851441076,-500.0,0.00016528,2]
[330837491,1719851441085,-500.0,0.00016528,2]
[330837492,1719851441095,-500.0,0.00016528,2]
[330837493,1719851441105,-598.43,0.00016528,2]
[330837494,1719851441115,-1223.62,0.00016528,2]
[330837495,1719851441124,-500.0,0.00016528,2]
[330837496,1719851441134,-1290.99,0.00016528,2]
[330837497,1719851441144,-620.01,0.00016528,2]
[330837498,1719851441154,-3558.99,0.00016528,2]
[330837499,1719851441163,-738.68,0.00016528,2]
[330837500,1719851441173,-624.51,0.00016528,2]
[330837501,1719851441182,-422.01,0.00016528,2]
[330837502,1719851441192,-603.24,0.00016528,2]
[330837503,1719851441202,-500.0,0.00016528,2]
[330837504,1719851441212,-558.74,0.00016528,2]
[330837505,1719851441222,-151.0,0.00016528,2]
[330837506,1719851441231,-151.0,0.00016528,2]
[330837507,1719851441241,-151.0,0.00016528,2]
[330837508,1719851441250,-714.4,0.00016529,2]
[330837509,1719851441377,-500.0,0.00016529,2]
[330837510,1719851441387,-500.0,0.00016529,2]
[330837511,1719851441397,-605.1,0.00016529,2]
[330837512,1719851441406,-189.8,0.00016529,2]
[330837513,1719851441416,-1458.75,0.00016529,2]
[330837514,1719851441426,-760.68,0.00016529,2]
[330837515,1719851441436,-320.9,0.00016529,2]
[330837516,1719851441447,-181.37,0.00016529,2]
[330837517,1719851441457,-500.0,0.00016529,2]
[330837518,1719851441467,-682.04,0.00016529,2]
[330837519,1719851441477,-500.0,0.00016529,2]
[330837520,1719851441487,-509.0,0.00016529,2]
[330837521,1719851441497,-500.0,0.00016529,2]
[330837522,1719851441506,-500.0,0.00016529,2]
[330837523,1719851441516,-500.0,0.00016529,2]
[330837524,1719851441526,-500.0,0.00016529,2]
[330837525,1719851441535,-437.51,0.00016529,2]
[330837526,1719851441545,-617.7,0.00016529,2]
[330837527,1719851441554,-550.58,0.00016529,2]
[330837528,1719851441564,-398.90390365,0.00016529,2]
[330837529,1719851441574,-151.0,0.00016529,2]
[330837530,1719851441584,-500.0,0.00016529,2]
[330837531,1719851441594,-151.0,0.00016529,2]
[330837532,1719851441603,-151.0,0.00016529,2]
[330837533,1719851441613,-159.7,0.00016529,2]
[330837534,1719851441623,-435.7,0.00016529,2]
[330837535,1719851441633,-402.58,0.00016529,2]
[330837536,1719851441643,-235.16,0.00016529,2]
[330837537,1719851441653,-500.0,0.00016529,2]
[330837538,1719851441662,-664.67305,0.00016529,2]
[330837539,1719851441672,-395.51,0.00016529,2]
[330837540,1719851441681,-664.67305,0.00016529,2]
[330837541,1719851441690,-500.0,0.00016529,2]
[330837542,1719851441700,-151.0,0.00016529,2]
[330837543,1719851441709,-153.386898,0.00016529,2]
[330837544,1719851441719,-500.0,0.00016529,2]
[330837545,1719851441733,-1241.572602,0.00016529,2]
[330837546,1719851441743,-1241.572602,0.00016529,2]
[330837547,1719851441751,-500.0,0.00016529,2]
[330837548,1719851441761,-157.746384,0.00016529,2]
[330837549,1719851441771,-500.0,0.00016529,2]
[330837550,1719851441781,-157.746384,0.00016529,2]
[330837551,1719851441790,-2820.17298155,0.00016529,2]
[330837552,1719851441909,-660.0,0.00016529,2]
[330837561,1719851442764,-500.0,0.00015979,2]
[330837564,1719851442775,-500.0,0.00016046,2]
[330837567,1719851442784,-161.85701845,0.00016529,2]
[330837569,1719851442794,-475.78381799,0.00016529,2]
[330837700,1719851446315,-500.0,0.00015979,2]
[330837702,1719851446324,-500.0,0.00016251,2]
[330837704,1719851446334,-404.03,0.00016527,2]
[330837706,1719851446343,-700.85618201,0.00016529,2]
[330837708,1719851446353,-434.19,0.00016529,2]
[330837710,1719851446362,-500.0,0.00016529,2]
[330837712,1719851446372,-500.0,0.00016529,2]
[330837714,1719851446382,-500.0,0.00016529,2]
[330837716,1719851446392,-500.0,0.00016529,2]
[330837718,1719851446402,-274.7660804,0.00016594,2]
[330837720,1719851446411,-500.0,0.00016594,2]
[330837722,1719851446421,-538.17,0.00016594,2]
[330837724,1719851446430,-266.53,0.00016594,2]
[330837726,1719851446439,-398.12,0.00016594,2]
[330837727,1719851446448,-334.44,0.00016594,2]
[330837729,1719851446458,-500.0,0.00016594,2]
[330837731,1719851446467,-465.2,0.00016594,2]
[330837732,1719851446477,-500.0,0.00016594,2]
[330837733,1719851446486,-500.0,0.00016594,2]
[330837734,1719851446495,-151.0,0.00016594,2]
[330837735,1719851446505,-202.43,0.00016594,2]
[330837736,1719851446515,-1175.087034,0.00016594,2]
[330837737,1719851446524,-151.0,0.00016594,2]
[330837738,1719851446534,-500.0,0.00016594,2]
[330837739,1719851446543,-210.779414,0.00016594,2]
[330837740,1719851446552,-151.0,0.00016594,2]
[330837741,1719851446562,-151.0,0.00016594,2]
[330837742,1719851446571,-500.0,0.00016594,2]
[330837743,1719851446582,-256.63287217,0.00016594,2]
[330837744,1719851446592,-500.0,0.00016594,2]
[330837745,1719851446601,-155.0,0.000166,2]
[330837746,1719851446611,-500.0,0.00016799,2]
[330837747,1719851446621,-1102.65,0.000168,2]
[330837748,1719851446630,-158.957624,0.00016801,2]
[330837749,1719851446640,-151.0,0.00016801,2]
[330837750,1719851446650,-2423.97,0.00016801,2]
[330837751,1719851446660,-500.0,0.00016801,2]
[330837752,1719851446670,-539.66,0.00016801,2]
[330837753,1719851446679,-151.0,0.00016801,2]
[330837754,1719851446688,-151.0,0.00016801,2]
[330837755,1719851446698,-151.0,0.00016801,2]
[330837756,1719851446707,-664.67305,0.00016801,2]
[330837757,1719851446717,-664.67305,0.00016801,2]
[330837758,1719851446726,-151.0,0.00016801,2]
[330837759,1719851446739,-1241.572602,0.00016801,2]
[330837760,1719851446749,-500.0,0.00016801,2]
[330837761,1719851446759,-1241.572602,0.00016801,2]
[330837762,1719851446768,-500.0,0.00016801,2]
[330837763,1719851446780,-530.4646089,0.0001681,2]
[330837764,1719851446790,-530.4646089,0.0001681,2]
[330837765,1719851446800,-151.0,0.0001681,2]
[330837766,1719851446810,-151.0,0.0001681,2]
[330837767,1719851446821,-151.0,0.0001681,2]
[330837768,1719851446831,-242.70407742,0.00016812,2]
[330837769,1719851446840,-1000.0,0.00017,2]
[330837770,1719851446850,-542.73,0.00017073,2]
[330837771,1719851446860,-441.06192597,0.00017073,2]
[330837772,1719851446870,-500.0,0.00017073,2]
[330837773,1719851446879,-500.0,0.00017073,2]
[330837774,1719851446888,-500.0,0.00017073,2]
[330837775,1719851446898,-500.0,0.00017074,2]
[330837776,1719851446908,-1103.98,0.00017074,2]
[330837777,1719851446917,-500.0,0.00017074,2]
[330837778,1719851446926,-500.0,0.00017074,2]
[330837779,1719851446938,-500.0,0.00017074,2]
[330837780,1719851446947,-500.0,0.00017074,2]
[330837781,1719851446956,-500.0,0.00017074,2]
[330837782,1719851446966,-500.0,0.00017074,2]
[330837783,1719851446975,-2944.17,0.00017074,2]
[330837784,1719851446985,-500.0,0.00017075,2]
[330837785,1719851446995,-795.08,0.00017075,2]
[330837786,1719851447004,-500.0,0.00017075,2]
[330837787,1719851447014,-416.42412715,0.00017075,2]
[330837788,1719851447023,-4605.05,0.00017075,2]
[330837789,1719851447033,-18060.99303652,0.00017076,2]
[330837790,1719851447042,-818.71,0.00017076,2]
[330837791,1719851447052,-1575.53,0.00017076,2]
[330837792,1719851447061,-2246.4,0.00017076,2]
[330837793,1719851447070,-500.0,0.00017076,2]
[330837794,1719851447080,-500.0,0.00017076,2]
[330837795,1719851447090,-500.0,0.00017076,2]
[330837796,1719851447099,-542.83,0.00017076,2]
[330837797,1719851447108,-500.0,0.00017076,2]
[330837798,1719851447118,-647.63,0.00017076,2]
[330837799,1719851447131,-856.66,0.00017076,2]
[330837800,1719851447140,-3948.25,0.00017076,2]
[330837801,1719851447149,-359.85,0.00017076,2]
[330837802,1719851447159,-157.746384,0.00017076,2]
[330837803,1719851447168,-500.0,0.00017076,2]
[330837804,1719851447177,-157.746384,0.00017076,2]
[330837805,1719851447186,-525.48395495,0.00017076,2]
[330837806,1719851447196,-598.43,0.00017076,2]
[330837807,1719851447205,-1223.62,0.00017076,2]
[330837808,1719851447215,-500.0,0.00017076,2]
[330837809,1719851447225,-1290.99,0.00017076,2]
[330837810,1719851447234,-3558.99,0.00017076,2]
[330837811,1719851447244,-738.68,0.00017076,2]
[330837812,1719851447253,-603.24,0.00017076,2]
[330837813,1719851447263,-500.0,0.00017076,2]
[330837814,1719851447271,-151.0,0.00017076,2]
[330837815,1719851447280,-193.026329,0.00017076,2]
[330837816,1719851447289,-151.0,0.00017076,2]
[330837817,1719851447299,-500.0,0.00017077,2]
[330837818,1719851447308,-500.0,0.00017077,2]
[330837819,1719851447317,-760.68,0.00017077,2]
[330837820,1719851447327,-1458.75,0.00017077,2]
[330837821,1719851447336,-500.0,0.00017077,2]
[330837822,1719851447346,-682.04,0.00017077,2]
[330837823,1719851447355,-500.0,0.00017077,2]
[330837824,1719851447365,-185.081782,0.00017077,2]
[330837825,1719851447374,-256.55,0.00017077,2]
[330837826,1719851447384,-500.0,0.00017077,2]
[330837827,1719851447393,-500.0,0.00017077,2]
[330837828,1719851447404,-500.0,0.00017077,2]
[330837829,1719851447413,-1175.087034,0.00017077,2]
[330837830,1719851447423,-151.0,0.00017077,2]
[330837831,1719851447432,-151.0,0.00017077,2]
[330837832,1719851447441,-272.884344,0.00017077,2]
[330837833,1719851447451,-500.0,0.00017077,2]
[330837834,1719851447460,-500.0,0.00017077,2]
[330837835,1719851447471,-500.0,0.00017077,2]
[330837836,1719851447480,-500.0,0.00017077,2]
[330837837,1719851447490,-500.0,0.00017077,2]
[330837838,1719851447499,-500.0,0.00017077,2]
[330837839,1719851447509,-3642.03,0.00017077,2]
[330837840,1719851447519,-1176.64,0.00017077,2]
[330837841,1719851447528,-500.0,0.00017077,2]
[330837842,1719851447537,-500.0,0.00017077,2]
[330837843,1719851447547,-500.0,0.00017077,2]
[330837844,1719851447556,-500.0,0.00017077,2]
[330837845,1719851447566,-598.0,0.000171,2]
[330837846,1719851447575,-247.61,0.00017142,2]
[330837847,1719851447586,-500.0,0.00017142,2]
[330837848,1719851447596,-166.32768929,0.00017142,2]
[330837849,1719851447605,-500.0,0.00017142,2]
[330837850,1719851447615,-500.0,0.00017142,2]
[330837851,1719851447624,-159.669392,0.00017142,2]
[330837852,1719851447634,-151.0,0.00017142,2]
[330837853,1719851447644,-500.0,0.00017142,2]
[330837854,1719851447654,-151.0,0.00017142,2]
[330837855,1719851447663,-664.67305,0.00017142,2]
[330837856,1719851447673,-664.67305,0.00017142,2]
[330837857,1719851447682,-1241.572602,0.00017142,2]
[330837858,1719851447692,-1241.572602,0.00017142,2]
[330837859,1719851447702,-500.0,0.00017142,2]
[330837860,1719851447711,-151.0,0.00017159,2]
[330837861,1719851447721,-5285.14289515,0.00017276,2]
[330837862,1719851447731,-500.0,0.00017347,2]
[330837863,1719851447744,-1102.65,0.00017348,2]
[330837864,1719851447753,-2423.97,0.00017349,2]
[330837865,1719851447763,-500.0,0.00017349,2]
[330837866,1719851447774,-539.66,0.00017349,2]
[330837867,1719851447783,-500.0,0.00017349,2]
[330837868,1719851447793,-549.66,0.00017349,2]
[330837869,1719851447802,-157.746384,0.00017366,2]
[330837870,1719851447812,-157.746384,0.00017366,2]
[330837871,1719851447824,-1000.0,0.000175,2]
[330837872,1719851447834,-160.0,0.00017537,3]
[330837873,1719851447843,-155.0,0.0001756,2]
[330837874,1719851447852,-1189.95785948,0.000176,2]
[330837875,1719851447862,-281.41420253,0.000176,2]
[330837876,1719851447872,-542.73,0.00017621,2]
[330837877,1719851447881,-500.0,0.00017621,2]
[330837878,1719851447890,-500.0,0.00017621,2]
[330837879,1719851447899,-151.0,0.00017621,2]
[330837880,1719851447909,-500.0,0.00017621,2]
[330837881,1719851447918,-151.0,0.00017621,2]
[330837882,1719851447927,-500.0,0.00017622,2]
[330837883,1719851447937,-1103.98,0.00017622,2]
[330837884,1719851447946,-500.0,0.00017622,2]
[330837885,1719851447956,-500.0,0.00017622,2]
[330837886,1719851447965,-500.0,0.00017622,2]
[330837887,1719851447976,-267.13101828,0.00017622,2]
[330837888,1719851447985,-500.0,0.00017622,2]
[330837889,1719851447994,-500.0,0.00017622,2]
[330837890,1719851448003,-2944.17,0.00017622,2]